fUST/lending_fUST_20250902
["ID","MTS","AMOUNT","RATE_DAILY","PERIOD"]
[383002470,1756799442397,-1211.48,0.0001567,2]
[383002472,1756799442407,-480.0,0.000157,2]
[383002474,1756799442416,-431.0,0.00015749,2]
[383002476,1756799442427,-1457.54,0.00015749,2]
[383002478,1756799442437,-250.0,0.00015755,2]
[383002479,1756799442446,-2000.0,0.000158,2]
[383002481,1756799442456,-159.99477124,0.00015805,2]
[383002483,1756799442465,-214.22035869,0.0001589,2]
[383002486,1756799442477,-209.0,0.0001589,2]
[383002488,1756799442486,-209.0,0.0001589,2]
[383002490,1756799442496,-490.16,0.0001589,2]
[383002492,1756799442505,-544.11,0.00015944,2]
[383002493,1756799442516,-480.0,0.00015944,2]
[383002496,1756799442530,-480.0,0.00015944,2]
[383002497,1756799442540,-508.9,0.00015944,2]
[383002500,1756799442550,-601.82,0.00015944,2]
[383002501,1756799442559,-480.0,0.00015944,2]
[383002503,1756799442570,-480.0,0.00015944,2]
[383002505,1756799442579,-538.94,0.00015944,2]
[383002507,1756799442588,-480.0,0.00015944,2]
[383002509,1756799442597,-290.17180661,0.00015944,2]
[383002511,1756799442607,-944.53,0.00015944,2]
[383002513,1756799442616,-214.47267771,0.00015944,2]
[383002515,1756799442625,-480.0,0.00015944,2]
[383002517,1756799442634,-480.0,0.00015944,2]
[383002520,1756799442644,-1211.48,0.00015944,2]
[383002522,1756799442653,-480.0,0.00015974,2]
[383002524,1756799442663,-212.04043229,0.00016,2]
[383002527,1756799442673,-12295.44516988,0.00016,2]
[383002529,1756799442682,-1028.94407303,0.00016,5]
[383002531,1756799442692,-3000.0,0.00016,2]
[383002533,1756799442701,-3000.0,0.0001601,2]
[383002535,1756799442710,-3000.0,0.0001602,2]
[383002539,1756799442725,-431.0,0.00016023,2]
[383002540,1756799442734,-1457.54,0.00016023,2]
[383002543,1756799442744,-3000.0,0.0001603,2]
[383002544,1756799442754,-3000.0,0.0001604,2]
[383002546,1756799442764,-3000.0,0.0001605,2]
[383002548,1756799442774,-3000.0,0.0001606,2]
[383002550,1756799442783,-2500.0,0.00016064,2]
[383002552,1756799442793,-2500.0,0.00016064,2]
[383002554,1756799442803,-3000.0,0.0001607,2]
[383002556,1756799442816,-3000.0,0.0001608,2]
[383002558,1756799442825,-3000.0,0.0001609,2]
[383002559,1756799442835,-3000.0,0.000161,2]
[383002560,1756799442845,-3000.0,0.0001611,2]
[383002561,1756799442854,-3000.0,0.0001612,2]
[383002562,1756799442863,-3000.0,0.0001613,2]
[383002563,1756799442874,-3000.0,0.0001614,2]
[383002564,1756799442886,-160.0,0.00016142,2]
[383002565,1756799442896,-3000.0,0.0001615,2]
[383002566,1756799442905,-3000.0,0.0001616,2]
[383002567,1756799442915,-541.42,0.00016164,2]
[383002568,1756799442926,-490.16,0.00016164,2]
[383002569,1756799442935,-3000.0,0.0001617,2]
[383002570,1756799442945,-3000.0,0.0001618,2]
[383002571,1756799442954,-3000.0,0.0001619,2]
[383002572,1756799442964,-3000.0,0.000162,2]
[383002573,1756799442976,-3000.0,0.0001621,2]
[383002574,1756799442986,-544.11,0.00016218,2]
[383002575,1756799442995,-480.0,0.00016218,2]
[383002576,1756799443005,-480.0,0.00016218,2]
[383002577,1756799443015,-508.9,0.00016218,2]
[383002578,1756799443025,-601.82,0.00016218,2]
[383002579,1756799443034,-480.0,0.00016218,2]
[383002580,1756799443044,-617.46727189,0.00016218,2]
[383002581,1756799443053,-538.94,0.00016218,2]
[383002582,1756799443063,-480.0,0.00016218,2]
[383002583,1756799443073,-944.53,0.00016218,2]
[383002584,1756799443082,-480.0,0.00016218,2]
[383002586,1756799443092,-480.0,0.00016218,2]
[383002588,1756799443102,-1211.48,0.00016218,2]
[383002590,1756799443112,-3000.0,0.0001622,2]
[383002592,1756799443122,-3000.0,0.0001623,2]
[383002594,1756799443131,-500.0,0.00016235,2]
[383002596,1756799443142,-500.0,0.00016235,2]
[383002598,1756799443151,-500.0,0.00016235,2]
[383002600,1756799443161,-500.0,0.00016235,2]
[383002602,1756799443171,-500.0,0.00016235,2]
[383002605,1756799443180,-3000.0,0.0001624,2]
[383002607,1756799443190,-480.0,0.00016248,2]
[383002609,1756799443199,-3000.0,0.0001625,2]
[383002611,1756799443208,-1369.59908772,0.0001625,2]
[383002613,1756799443220,-3000.0,0.0001626,2]
[383002615,1756799443230,-3000.0,0.0001627,2]
[383002617,1756799443239,-3000.0,0.0001628,2]
[383002619,1756799443248,-3000.0,0.0001629,2]
[383002621,1756799443258,-431.0,0.00016297,2]
[383002623,1756799443267,-1457.54,0.00016297,2]
[383002625,1756799443277,-3000.0,0.000163,2]
[383002627,1756799443287,-3000.0,0.0001631,2]
[383002629,1756799443297,-3000.0,0.0001632,2]
[383002631,1756799443306,-3000.0,0.0001633,2]
[383002633,1756799443316,-3000.0,0.0001634,2]
[383002635,1756799443325,-3000.0,0.0001635,2]
[383002637,1756799443334,-3000.0,0.0001636,2]
[383002639,1756799443344,-3000.0,0.0001637,2]
[383002641,1756799443354,-3000.0,0.0001638,2]
[383002643,1756799443363,-3000.0,0.0001639,2]
[383002645,1756799443372,-3000.0,0.000164,2]
[383002647,1756799443382,-3000.0,0.000164,2]
[383002649,1756799443391,-3000.0,0.000164,2]
[383002651,1756799443401,-3000.0,0.000164,2]
[383002653,1756799443411,-3000.0,0.000164,2]
[383002655,1756799443420,-3000.0,0.0001641,2]
[383002657,1756799443430,-3000.0,0.0001642,2]
[383002659,1756799443440,-3000.0,0.0001643,2]
[383002661,1756799443450,-541.42,0.00016438,2]
[383002663,1756799443460,-500.0,0.00016438,2]
[383002665,1756799443471,-500.0,0.00016438,2]
[383002667,1756799443481,-500.0,0.00016438,2]
[383002669,1756799443490,-500.0,0.00016438,2]
[383002671,1756799443500,-500.0,0.00016438,2]
[383002673,1756799443509,-500.0,0.00016438,2]
[383002675,1756799443519,-500.0,0.00016438,2]
[383002677,1756799443529,-500.0,0.00016438,2]
[383002679,1756799443539,-500.0,0.00016438,2]
[383002681,1756799443548,-500.0,0.00016438,2]
[383002683,1756799443557,-500.0,0.00016438,2]
[383002685,1756799443567,-500.0,0.00016438,2]
[383002687,1756799443576,-490.16,0.00016438,2]
[383002689,1756799443586,-500.0,0.00016438,2]
[383002706,1756799443595,-561.42705929,0.00016438,2]
[383002708,1756799443745,-151.0,0.00016438,2]
[383002710,1756799443755,-151.0,0.00016438,2]
[383002712,1756799443765,-151.0,0.00016438,2]
[383002714,1756799443774,-151.0,0.00016438,2]
[383002716,1756799443784,-151.0,0.00016438,2]
[383002718,1756799443794,-151.0,0.00016438,2]
[383002720,1756799443803,-151.0,0.00016438,2]
[383002722,1756799443815,-151.0,0.00016438,2]
[383002724,1756799443824,-151.0,0.00016438,2]
[383002726,1756799443834,-188.448467,0.00016438,2]
[383002728,1756799443843,-151.0,0.00016438,2]
[383002730,1756799443853,-151.0,0.00016438,2]
[383002732,1756799443862,-151.0,0.00016438,2]
[383002734,1756799443871,-151.0,0.00016438,2]
[383002736,1756799443881,-151.0,0.00016438,2]
[383002738,1756799443890,-160.583119,0.00016438,2]
[383002740,1756799443900,-500.0,0.00016438,2]
[383002742,1756799443909,-200.0,0.00016438,3]
[383002744,1756799443918,-200.0,0.00016438,3]
[383002746,1756799443929,-200.0,0.00016438,3]
[383002748,1756799443938,-200.0,0.00016438,3]
[383002750,1756799443947,-200.0,0.00016438,3]
[383002752,1756799443957,-200.0,0.00016438,3]
[383002754,1756799443968,-203.649426,0.00016438,2]
[383002756,1756799443977,-203.649426,0.00016438,2]
[383002758,1756799443987,-203.649426,0.00016438,2]
[383002760,1756799443997,-203.649426,0.00016438,2]
[383002762,1756799444006,-203.649426,0.00016438,2]
[383002764,1756799444016,-203.649426,0.00016438,2]
[383002766,1756799444025,-203.649426,0.00016438,2]
[383002768,1756799444035,-203.649426,0.00016438,2]
[383002770,1756799444044,-203.649426,0.00016438,2]
[383002772,1756799444054,-203.649426,0.00016438,2]
[383002774,1756799444064,-203.649426,0.00016438,2]
[383002776,1756799444074,-203.649426,0.00016438,2]
[383002778,1756799444083,-203.649426,0.00016438,2]
[383002780,1756799444093,-203.649426,0.00016438,2]
[383002782,1756799444103,-203.649426,0.00016438,2]
[383002784,1756799444112,-203.649426,0.00016438,2]
[383002786,1756799444121,-203.649426,0.00016438,2]
[383002788,1756799444131,-203.649426,0.00016438,2]
[383002790,1756799444140,-203.649426,0.00016438,2]
[383002792,1756799444149,-203.649423,0.00016438,2]
[383002794,1756799444158,-254.63683495,0.00016438,2]
[383002796,1756799444168,-3000.0,0.0001644,2]
[383002798,1756799444179,-3000.0,0.0001645,2]
[383002800,1756799444189,-3000.0,0.0001646,2]
[383002802,1756799444199,-3000.0,0.0001647,2]
[383002804,1756799444208,-3000.0,0.0001648,2]
[383002806,1756799444219,-1240.65717222,0.0001649,2]
[383003004,1756799446386,-300.0,0.00014306,2]
[383003006,1756799446397,-300.0,0.00014306,2]
[383003008,1756799446407,-300.0,0.00014306,2]
[383003010,1756799446417,-300.0,0.00014306,2]
[383003012,1756799446427,-146.99539939,0.00014306,2]
[383003016,1756799446457,-153.00460061,0.00014306,2]
[383003018,1756799446467,-480.0,0.00014847,2]
[383003020,1756799446478,-269.67381225,0.000164,2]
[383003022,1756799446490,-2730.32618775,0.000164,2]
[383003025,1756799446499,-1649.42212105,0.0001649,2]
[383003361,1756799943896,300.0,0.00027397,120]
[383003362,1756800042605,150.0,0.00027397,120]
[383003363,1756800049947,1000.0,0.00012909,2]
[383003364,1756800058239,1000.0,0.00012909,2]
[383003365,1756800200896,228.0,0.00027397,120]
[383003683,1756800436131,-1000.0,0.00013039,2]
[383003684,1756800436155,-1000.0,0.00013171,2]
[383003685,1756800436177,-1000.0,0.00013574,2]
[383003686,1756800436199,-918.175465,0.00013699,2]
[383003687,1756800436220,-1059.0,0.0001375,2]
[383003688,1756800436242,-300.0,0.0001375,2]
[383003689,1756800436266,-50000.0,0.00013751,2]
[383003690,1756800436289,-226.72337864,0.00013751,2]
[383003691,1756800436311,-480.0,0.00013751,2]
[383003692,1756800436332,-480.0,0.00013751,2]
[383003693,1756800436355,-480.0,0.00013751,2]
[383003694,1756800436377,-480.0,0.00013751,2]
[383003695,1756800436400,-480.0,0.00013751,2]
[383003696,1756800436423,-480.0,0.00013751,2]
[383003697,1756800436444,-508.14784749,0.00013751,2]
[383003698,1756800436467,-480.0,0.00013751,2]
[383003699,1756800436489,-480.0,0.00013751,2]
[383003700,1756800436511,-480.0,0.00013752,2]
[383003701,1756800436536,-480.0,0.00013752,2]
[383003702,1756800436558,-480.0,0.00013752,2]
[383003703,1756800436581,-480.0,0.00013752,2]
[383003704,1756800436604,-480.0,0.00013752,2]
[383003705,1756800436627,-480.0,0.00013772,2]
[383003706,1756800436652,-550.98,0.00013772,2]
[383003707,1756800436674,-480.0,0.00013772,2]
[383003708,1756800436699,-706.7,0.00013772,2]
[383003709,1756800436721,-530.22964562,0.00013773,2]
[383003710,1756800436743,-232.87008258,0.00013773,2]
[383003711,1756800436766,-160.0,0.00013829,2]
[383003712,1756800436787,-160.0,0.00013829,2]
[383003713,1756800436809,-151.0,0.00014018,2]
[383003714,1756800436831,-151.0,0.00014018,2]
[383003715,1756800436853,-151.0,0.00014018,2]
[383003716,1756800436875,-297.0,0.00014018,2]
[383003717,1756800436898,-316.3878574,0.00014018,2]
[383003718,1756800436920,-160.0,0.00014018,2]
[383003719,1756800436942,-417.15472785,0.00014018,2]
[383003720,1756800436965,-160.0,0.00014018,2]
[383003721,1756800436987,-217.47380718,0.00014018,2]
[383003722,1756800437009,-846.21894513,0.00014018,2]
[383003723,1756800437031,-480.0,0.00014025,2]
[383003724,1756800437054,-480.0,0.00014025,2]
[383003725,1756800437076,-480.0,0.00014025,2]
[383003726,1756800437099,-480.0,0.00014025,2]
[383003727,1756800437123,-395.05974182,0.00014025,2]
[383005132,1756800632385,-480.0,0.00013498,2]
[383005134,1756800632395,-118.0226664,0.00013634,2]
[383005137,1756800632472,-361.9773336,0.00013634,2]
[383005139,1756800632483,-480.0,0.0001375,2]
[383005141,1756800632492,-267.83859352,0.0001375,2]
[383005142,1756800632504,-32.16140648,0.0001375,2]
[383005143,1756800632514,-480.0,0.0001375,2]
[383005144,1756800632523,-346.79203938,0.00013751,2]
[383005146,1756800632560,-133.20796062,0.00013751,2]
[383005147,1756800632569,-480.0,0.00013751,2]
[383005148,1756800632579,-481.8334977,0.00013751,2]
[383005149,1756800632589,-121.55854168,0.00013751,2]
[383005152,1756800632600,-358.44145832,0.00013751,2]
[383005154,1756800632610,-477.86179259,0.00013751,2]
[383005192,1756800638363,-2.13820741,0.00013751,2]
[383005194,1756800638373,-528.02,0.00013751,2]
[383005196,1756800638382,-548.89121453,0.00013751,2]
[383005198,1756800638391,-480.0,0.00013772,2]
[383005200,1756800638401,-480.0,0.00013772,2]
[383005202,1756800638411,-160.0,0.00013829,2]
[383005204,1756800638420,-316.3878574,0.00013829,2]
[383005206,1756800638429,-160.0,0.00013829,2]
[383005208,1756800638439,-417.15472785,0.00013829,2]
[383005209,1756800638448,-217.47380718,0.00013829,2]
[383005211,1756800638457,-846.21894513,0.00013831,2]
[383005213,1756800638467,-480.0,0.00014024,2]
[383005215,1756800638476,-480.0,0.00014024,2]
[383005217,1756800638485,-530.22964562,0.00014025,2]
[383005219,1756800638495,-232.87008258,0.00014025,2]
[383005221,1756800638504,-12105.62181847,0.00014025,2]
[383005268,1756800638972,-26896.8850473,0.00014025,2]
[383005270,1756800638983,-10997.49313423,0.00014025,2]
[383005272,1756800638992,-480.0,0.00014025,2]
[383005274,1756800639001,-480.0,0.00014025,2]
[383005276,1756800639011,-480.0,0.00014025,2]
[383005278,1756800639020,-480.0,0.00014025,2]
[383005280,1756800639030,-337.73,0.00014025,2]
[383005282,1756800639040,-480.0,0.00014025,2]
[383005284,1756800639050,-480.0,0.00014025,2]
[383005286,1756800639060,-528.02,0.00014025,2]
[383005288,1756800639069,-480.0,0.00014026,2]
[383005290,1756800639079,-480.0,0.00014026,2]
[383005292,1756800639089,-480.0,0.00014026,2]
[383005294,1756800639099,-532.89121401,0.00014026,2]
[383005296,1756800639108,-706.7,0.00014046,2]
[383005298,1756800639118,-480.0,0.00014046,2]
[383005300,1756800639127,-480.0,0.00014046,2]
[383005302,1756800639138,-500.0,0.00014245,2]
[383005304,1756800639147,-480.0,0.00014298,2]
[383005306,1756800639157,-480.0,0.00014298,2]
[383005308,1756800639166,-480.0,0.00014299,2]
[383005310,1756800639176,-480.0,0.00014299,2]
[383005312,1756800639186,-480.0,0.00014299,2]
[383005314,1756800639195,-480.0,0.00014299,2]
[383005316,1756800639204,-480.0,0.00014299,2]
[383005318,1756800639214,-480.0,0.00014299,2]
[383005320,1756800639223,-480.0,0.00014299,2]
[383005321,1756800639232,-528.02,0.00014299,2]
[383005323,1756800639242,-480.0,0.000143,2]
[383005326,1756800639253,-482.5624305,0.000143,2]
[383005328,1756800639262,-480.0,0.000143,2]
[383005330,1756800639271,-706.7,0.0001432,2]
[383005332,1756800639280,-480.0,0.0001432,2]
[383005333,1756800639290,-480.0,0.0001432,2]
[383005335,1756800639299,-500.0,0.00014339,2]
[383005337,1756800639309,-975.0,0.00014339,2]
[383005339,1756800639320,-632.0,0.00014339,2]
[383005341,1756800639329,-2153.0,0.00014339,2]
[383005343,1756800639339,-408.57803628,0.00014572,2]
[383005345,1756800639348,-480.0,0.00014572,2]
[383005347,1756800639357,-481.47275709,0.00014573,2]
[383005349,1756800639367,-453.24,0.00014573,2]
[383005351,1756800639377,-236.05594945,0.00014573,2]
[383005353,1756800639386,-480.0,0.00014573,2]
[383005355,1756800639397,-480.0,0.00014573,2]
[383005357,1756800639406,-480.0,0.00014573,2]
[383005359,1756800639415,-480.0,0.00014573,2]
[383005361,1756800639424,-528.02,0.00014573,2]
[383005363,1756800639433,-480.0,0.00014574,2]
[383005365,1756800639443,-706.7,0.00014594,2]
[383005367,1756800639452,-480.0,0.00014594,2]
[383005369,1756800639461,-480.0,0.00014594,2]
[383005371,1756800639473,-176.91289056,0.0001473,2]
[383005373,1756800639483,-7291.2496591,0.0001483,2]
[383005375,1756800639492,-2412.2,0.00014846,2]
[383005377,1756800639502,-480.0,0.00014846,2]
[383005379,1756800639511,-850.24,0.00014847,2]
[383005381,1756800639520,-480.0,0.00014847,2]
[383005383,1756800639529,-480.0,0.00014847,2]
[383005385,1756800639539,-480.0,0.00014847,2]
[383005387,1756800639548,-480.0,0.00014847,2]
[383005389,1756800639559,-528.02,0.00014847,2]
[383005391,1756800639569,-480.0,0.00014848,2]
[383005393,1756800639578,-706.7,0.00014868,2]
[383005395,1756800639588,-480.0,0.00014868,2]
[383005397,1756800639599,-480.0,0.00014868,2]
[383005399,1756800639608,-500.0,0.00014957,2]
[383005401,1756800639622,-184.965,0.00015,2]
[383005403,1756800639632,-420.0,0.00015068,2]
[383005405,1756800639642,-4000.0,0.0001512,2]
[383005407,1756800639651,-480.0,0.0001512,2]
[383005409,1756800639663,-293.23901505,0.0001512,2]
[383005411,1756800639672,-500.0,0.0001512,2]
[383005413,1756800639682,-500.0,0.0001512,2]
[383005415,1756800639691,-549.70034156,0.0001512,2]
[383005417,1756800639701,-850.24,0.00015121,2]
[383005419,1756800639710,-480.0,0.00015121,2]
[383005421,1756800639722,-480.0,0.00015121,2]
[383005423,1756800639731,-480.0,0.00015121,2]
[383005425,1756800639740,-480.0,0.00015121,2]
[383005427,1756800639750,-528.02,0.00015121,2]
[383005429,1756800639759,-480.0,0.00015122,2]
[383005431,1756800639768,-706.7,0.00015142,2]
[383005448,1756800639925,-480.0,0.00015142,2]
[383005450,1756800639935,-480.0,0.00015142,2]
[383005452,1756800639946,-5000.0,0.00015394,2]
[383005454,1756800639955,-480.0,0.00015394,2]
[383005456,1756800639965,-850.24,0.00015395,2]
[383005458,1756800639974,-480.0,0.00015395,2]
[383005461,1756800639984,-480.0,0.00015395,2]
[383005464,1756800639993,-593.12922749,0.00015395,2]
[383005467,1756800640002,-480.0,0.00015395,2]
[383005470,1756800640012,-528.02,0.00015395,2]
[383005473,1756800640021,-480.0,0.00015396,2]
[383005476,1756800640031,-706.7,0.00015416,2]
[383005479,1756800640041,-480.0,0.00015416,2]
[383005481,1756800640051,-480.0,0.00015416,2]
[383005484,1756800640062,-11000.0,0.00015668,2]
[383005485,1756800640072,-480.0,0.00015668,2]
[383005487,1756800640082,-850.24,0.00015669,2]
[383005489,1756800640091,-480.0,0.00015669,2]
[383005491,1756800640101,-480.0,0.00015669,2]
[383005493,1756800640111,-480.0,0.00015669,2]
[383005495,1756800640120,-528.02,0.00015669,2]
[383005497,1756800640133,-480.0,0.0001567,2]
[383005500,1756800640145,-706.7,0.0001569,2]
[383005503,1756800640155,-480.0,0.0001569,2]
[383005505,1756800640165,-480.0,0.0001569,2]
[383005507,1756800640174,-2000.0,0.000158,2]
[383005509,1756800640184,-600.0,0.0001583,2]
[383005511,1756800640193,-168.0,0.00015843,2]
[383005513,1756800640203,-168.0,0.00015875,2]
[383005515,1756800640212,-168.0,0.00015898,2]
[383005517,1756800640221,-480.0,0.00015942,2]
[383005519,1756800640231,-850.24,0.00015943,2]
[383005521,1756800640240,-480.0,0.00015943,2]
[383005523,1756800640250,-480.0,0.00015943,2]
[383005525,1756800640259,-480.0,0.00015943,2]
[383005527,1756800640269,-528.02,0.00015943,2]
[383005529,1756800640278,-480.0,0.00015944,2]
[383005531,1756800640287,-706.7,0.00015964,2]
[383005533,1756800640297,-480.0,0.00015964,2]
[383005535,1756800640307,-480.0,0.00015964,2]
[383005537,1756800640320,-600.0,0.00015995,2]
[383005539,1756800640330,-3000.0,0.00016,2]
[383005542,1756800640340,-3000.0,0.0001601,2]
[383005544,1756800640350,-3000.0,0.0001602,2]
[383005546,1756800640359,-3000.0,0.0001603,2]
[383005548,1756800640368,-3000.0,0.0001604,2]
[383005549,1756800640378,-3000.0,0.0001605,2]
[383005551,1756800640387,-3000.0,0.0001606,2]
[383005553,1756800640397,-3000.0,0.0001607,2]
[383005556,1756800640407,-151.0,0.0001607,2]
[383005557,1756800640416,-151.0,0.0001607,2]
[383005559,1756800640425,-151.0,0.0001607,2]
[383005561,1756800640435,-352.192321,0.0001607,2]
[383005563,1756800640444,-372.209236,0.0001607,2]
[383005565,1756800640454,-352.192321,0.0001607,2]
[383005567,1756800640463,-372.209236,0.0001607,2]
[383005569,1756800640472,-352.192321,0.0001607,2]
[383005571,1756800640481,-372.209236,0.0001607,2]
[383005573,1756800640491,-151.0,0.0001607,2]
[383005575,1756800640500,-352.192321,0.0001607,2]
[383005577,1756800640510,-372.209236,0.0001607,2]
[383005579,1756800640519,-151.0,0.0001607,2]
[383005581,1756800640528,-151.0,0.0001607,2]
[383005583,1756800640538,-247.680757,0.0001607,2]
[383005585,1756800640547,-247.680757,0.0001607,2]
[383005587,1756800640556,-247.680757,0.0001607,2]
[383005589,1756800640566,-247.680757,0.0001607,2]
[383005591,1756800640575,-297.593291,0.0001607,2]
[383005593,1756800640584,-297.593291,0.0001607,2]
[383005595,1756800640594,-297.593291,0.0001607,2]
[383005597,1756800640604,-297.593291,0.0001607,2]
[383005599,1756800640619,-151.0,0.0001607,2]
[383005601,1756800640629,-151.0,0.0001607,2]
[383005603,1756800640638,-151.0,0.0001607,2]
[383005605,1756800640647,-151.0,0.0001607,2]
[383005606,1756800640659,-151.0,0.0001607,2]
[383005608,1756800640669,-151.0,0.0001607,2]
[383005610,1756800640678,-225.790353,0.0001607,2]
[383005613,1756800640689,-225.790353,0.0001607,2]
[383005614,1756800640698,-225.790353,0.0001607,2]
[383005617,1756800640707,-225.790353,0.0001607,2]
[383005618,1756800640717,-165.489559,0.0001607,2]
[383005620,1756800640727,-165.489559,0.0001607,2]
[383005622,1756800640736,-165.489559,0.0001607,2]
[383005624,1756800640745,-165.489559,0.0001607,2]
[383005626,1756800640755,-277.040826,0.0001607,2]
[383005628,1756800640764,-277.040826,0.0001607,2]
[383005630,1756800640774,-277.040826,0.0001607,2]
[383005633,1756800640783,-277.040826,0.0001607,2]
[383005635,1756800640793,-151.0,0.0001607,2]
[383005636,1756800640803,-151.0,0.0001607,2]
[383005639,1756800640814,-151.0,0.0001607,2]
[383005641,1756800640824,-151.0,0.0001607,2]
[383005643,1756800640833,-151.0,0.0001607,2]
[383005645,1756800640843,-151.0,0.0001607,2]
[383005647,1756800640852,-1288.716751,0.0001607,2]
[383005649,1756800640861,-1288.716751,0.0001607,2]
[383005651,1756800640871,-1288.716751,0.0001607,2]
[383005653,1756800640880,-1288.716751,0.0001607,2]
[383005655,1756800640890,-171.354297,0.0001607,2]
[383005657,1756800640899,-171.354297,0.0001607,2]
[383005659,1756800640908,-171.354297,0.0001607,2]
[383005661,1756800640918,-171.354297,0.0001607,2]
[383005663,1756800640927,-151.0,0.0001607,2]
[383005665,1756800640936,-151.0,0.0001607,2]
[383005667,1756800640946,-151.0,0.0001607,2]
[383005669,1756800640955,-151.0,0.0001607,2]
[383005671,1756800640964,-151.0,0.0001607,2]
[383005673,1756800640973,-151.0,0.0001607,2]
[383005674,1756800640983,-151.0,0.0001607,2]
[383005677,1756800640992,-151.0,0.0001607,2]
[383005679,1756800641001,-154.406621,0.0001607,2]
[383005681,1756800641011,-151.0,0.0001607,2]
[383005683,1756800641020,-151.0,0.0001607,2]
[383005684,1756800641030,-151.0,0.0001607,2]
[383005686,1756800641039,-151.0,0.0001607,2]
[383005688,1756800641048,-3000.0,0.0001608,2]
[383005689,1756800641058,-3000.0,0.0001609,2]
[383005690,1756800641068,-151.0,0.0001609,2]
[383005691,1756800641078,-151.0,0.0001609,2]
[383005692,1756800641088,-151.0,0.0001609,2]
[383005693,1756800641097,-429.136776,0.0001609,2]
[383005694,1756800641106,-429.136776,0.0001609,2]
[383005695,1756800641116,-429.136776,0.0001609,2]
[383005696,1756800641126,-429.136776,0.0001609,2]
[383005697,1756800641136,-151.0,0.0001609,2]
[383005698,1756800641145,-217.510635,0.0001609,2]
[383005699,1756800641154,-217.510635,0.0001609,2]
[383005700,1756800641164,-217.510635,0.0001609,2]
[383005701,1756800641174,-217.510635,0.0001609,2]
[383005702,1756800641183,-151.0,0.0001609,2]
[383005703,1756800641193,-3000.0,0.000161,2]
[383005704,1756800641206,-3000.0,0.0001611,2]
[383005705,1756800641215,-151.0,0.0001611,2]
[383005706,1756800641225,-151.0,0.0001611,2]
[383005707,1756800641234,-151.0,0.0001611,2]
[383005708,1756800641244,-151.0,0.0001611,2]
[383005709,1756800641253,-151.0,0.0001611,2]
[383005710,1756800641263,-151.0,0.0001611,2]
[383005711,1756800641272,-151.0,0.0001611,2]
[383005712,1756800641282,-151.0,0.0001611,2]
[383005713,1756800641292,-151.0,0.0001611,2]
[383005714,1756800641302,-151.0,0.0001611,2]
[383005715,1756800641312,-151.0,0.0001611,2]
[383005716,1756800641323,-151.0,0.0001611,2]
[383005717,1756800641333,-151.0,0.0001611,2]
[383005718,1756800641343,-151.0,0.0001611,2]
[383005719,1756800641352,-310.861605,0.0001611,2]
[383005721,1756800641362,-310.861605,0.0001611,2]
[383005723,1756800641371,-310.861605,0.0001611,2]
[383005725,1756800641381,-151.0,0.0001611,2]
[383005727,1756800641390,-310.861605,0.0001611,2]
[383005729,1756800641400,-173.871329,0.0001611,2]
[383005731,1756800641409,-151.0,0.0001611,2]